Cogmind - Beta 10.2 @@@ ROGUE MODE // 2020.12.28 @ 18:44:35 Player: CrossedViper Result: Destroyed by D-53 Grenadier with Mini Grenade Launcher Performance ------------- Evolutions (0) 0 Regions Visited (4) 800 Robots Destroyed (14) 70 Value Destroyed (303) 303 Prototype IDs (23) 460 Alien Tech Used (0) 0 Bonus (265) 265 TOTAL SCORE: 1898 Bonus ------- Aligned with FarCom 300 Friendly Fire -35 Cogmind --------- Core Integrity 0/250 Matter 294/300 Energy 19/100 System Corruption 2% Temperature Cool (0) Movement Treading (180) Ox1 Location -9/Mines Parts ------- > --- POWER (1) -------- (None) > --- PROPULSION (2) --- Medium Treads > --- UTILITY (2) ------ Improved Heat Sink High-capacity Storage Unit > --- WEAPON (2) ------- Improved EM Pulse Cannon > --- INVENTORY (12) --- Nuclear Core Fission Core Fission Core High-capacity Storage Unit High-capacity Storage Unit High-capacity Storage Unit High-capacity Storage Unit Layered Light Armor Plating Medium Reflective Plating Plasma Cutter Plasma Cutter Peak State ------------ > --- POWER ------------ Light Ion Engine > --- PROPULSION ------- Light Treads Light Treads > --- UTILITY ---------- Improved Heat Sink High-capacity Storage Unit > --- WEAPON ----------- Latent Energy Streamer Light Assault Rifle > --- INVENTORY -------- Nuclear Core Fission Core Fission Core High-capacity Storage Unit High-capacity Storage Unit High-capacity Storage Unit High-capacity Storage Unit Medium Laser Light Assault Rifle Plasma Cutter Plasma Cutter [Rating: 20] Favorites ----------- Power Light Ion Engine Engine Light Ion Engine Propulsion Light Treads Treads Light Treads Leg Aluminum Leg Utility Improved Heat Sink Device Improved Heat Sink Storage High-capacity Storage Unit Weapon Light Assault Rifle Energy Gun Medium Laser Energy Cannon Improved EM Pulse Cannon Ballistic Gun Light Assault Rifle Special Weapon Plasma Cutter Build | -11 -10 -10 -10 -9 ------- Run | Scr Mat Min Exi Min Slots Evolved . | . . . . . Power . | . . . . . Propulsion . | . . . . . Utility . | . . . . . Weapon . | . . . . . Parts Attached 20 | . 7 3 3 7 Power 5 | . 1 2 . 2 Engine 5 | . 1 2 . 2 Core . | . . . . . Reactor . | . . . . . Propulsion 3 | . 2 . . 1 Treads 3 | . 2 . . 1 Leg . | . . . . . Wheel . | . . . . . Hover . | . . . . . Flight . | . . . . . Utility 2 | . 1 . 1 . Device 1 | . 1 . . . Storage 1 | . . . 1 . Processor . | . . . . . Hackware . | . . . . . Protection . | . . . . . Artifact . | . . . . . Weapon 10 | . 3 1 2 4 Energy Gun 2 | . 2 . . . Energy Cannon 2 | . . . 1 1 Ballistic Gun 3 | . . 1 1 1 Ballistic Cannon . | . . . . . Launcher . | . . . . . Special Weapon 3 | . 1 . . 2 Impact Weapon . | . . . . . Slashing Weapon . | . . . . . Piercing Weapon . | . . . . . Special Melee Weapon . | . . . . . Unidentified Prototypes . | . . . . . Parts Lost 11 | . 3 2 . 6 Power 3 | . 1 1 . 1 Propulsion 2 | . . . . 2 Utility . | . . . . . Weapon 6 | . 2 1 . 3 Highest Loss Streak 4 | . 3 2 . 4 Average Slot Usage (%) 98 | . 91 99 100 98 Engine 13 | . 13 13 14 13 Treads 26 | . 17 28 28 27 Leg 1 | . 10 . . . Device 13 | . 7 14 14 14 Storage 14 | . 14 14 14 14 Energy Gun 12 | . 23 19 13 . Energy Cannon 1 | . . . . 4 Ballistic Gun 11 | . . 8 14 14 Special Weapon 2 | . 3 . . 8 Naked Turns . | . . . . . Heaviest Build 47 | 12 15 15 47 47 Greatest Support 40 | 20 40 40 40 40 Greatest Overweight (x) 1 | . . . 1 1 Average Overweight (x) . | . . . . . Largest Inventory Capacity 12 | . 6 6 12 12 Average Capacity 9 | . 6 6 10 12 Most Carried 12 | . 6 6 11 12 Average Carried 7 | . 4 4 8 10 Final Capacity 12 | 6 6 6 12 12 Final Carried 11 | 6 3 4 9 11 Class Distribution -------------------- 95% | Mutant 4% | Scavenger-Mutant Dominant Class ---------------- Mutant | -10/Materials Mutant | -10/Mines Mutant | -10/Exiles Mutant | -9/Mines Resources | -11 -10 -10 -10 -9 ----------- Run | Scr Mat Min Exi Min Matter Collected 433 | 200 53 38 10 132 Remotely . | . . . . . Salvage Created 568 | . 123 308 19 118 Parts 28 | . 7 20 . 1 Haulers Intercepted . | . . . . . Recyclers Shooed 1 | . . 1 . . Parts Field Recycled . | . . . . . Retrieved Matter . | . . . . . Parts Self-Destructed . | . . . . . Prevented . | . . . . . Kills | -11 -10 -10 -10 -9 ------- Run | Scr Mat Min Exi Min Combat Hostiles Destroyed 15 | . 2 7 . 6 Guns 11 | . 1 7 . 3 Cannons 4 | . 1 . . 3 Classes Destroyed 7 | . 2 2 1 2 Recycler 2 | . . 2 . . Watcher 1 | . 1 . . . Swarmer 5 | . . 5 . . Grunt 4 | . 2 2 . . Demolisher 1 | . . . . 1 Zionite 1 | . . . 1 . Assembled 5 | . . . . 5 Best Kill Streak 4 | . 1 3 1 4 Combat Bots Only 4 | . 1 3 . 4 Max Kills in Single Turn 2 | . 1 2 1 1 Gunslinging 1 | . . 1 . . Exploded . | . . . . . Melee . | . . . . . Uniques/NPCs Destroyed . | . . . . . Combat | -11 -10 -10 -10 -9 -------- Run | Scr Mat Min Exi Min Damage Taken 1667 | . 452 355 . 860 Core 263 | . 48 55 . 160 Absorbed by Shields . | . . . . . Core Remaining (%) 100 | 100 . . . . Volleys Fired 69 | . 14 21 3 31 Largest 2 | . 2 2 2 2 Hottest 115 | . 115 115 40 97 Shots Fired 128 | . 26 41 5 56 Gun 101 | . 16 41 5 39 Cannon 5 | . . . . 5 Launcher . | . . . . . Special 22 | . 10 . . 12 Kinetic 50 | . . 6 5 39 Thermal 73 | . 26 35 . 12 Explosive . | . . . . . Electromagnetic 5 | . . . . 5 Robot Hit Streak 8 | . 8 8 6 6 Robot Miss Streak 5 | . 1 3 . 5 Penetration Max . | . . . . . Secondary Targets 3 | . . 3 . . Max Gunslinging Chain 1 | . . 1 . . Shots Hit Robots 79 | . 19 22 5 33 Core Hits 38 | . 6 14 3 15 Critical Hits . | . . . . . Critical Kills . | . . . . . Critical Parts Destroyed . | . . . . . Melee Attacks . | . . . . . Impact . | . . . . . Slashing . | . . . . . Piercing . | . . . . . Sneak Attacks . | . . . . . Combat Hostiles . | . . . . . Follow-up Attacks . | . . . . . Damage Inflicted 954 | . 217 319 44 374 Guns 757 | . 164 319 44 230 Cannons 76 | . . . . 76 Explosions . | . . . . . Melee . | . . . . . Ramming . | . . . . . Kinetic 321 | . . 47 44 230 Thermal 557 | . 217 272 . 68 Explosive . | . . . . . Electromagnetic 76 | . . . . 76 Impact . | . . . . . Slashing . | . . . . . Piercing . | . . . . . Highest Corruption 2 | . 2 2 2 2 Average Corruption 1 | . 1 2 2 2 Corruption Purged . | . . . . . Effects 26 | . 1 5 13 7 Message Errors 7 | . . 2 5 . Heat Flow Errors 6 | . . 1 3 2 Energy Discharges 5 | . 1 . 4 . Data Loss (minor) 5 | . . 1 1 3 Targeting Errors 3 | . . 1 . 2 Overload Shots . | . . . . . Overflow Damage 21 | . . . . 21 Projectiles 21 | . . . . 21 Explosions . | . . . . . Melee . | . . . . . Knockbacks . | . . . . . Impact . | . . . . . Kinetic . | . . . . . Secondary . | . . . . . Self-Inflicted Damage . | . . . . . Shots . | . . . . . Rammed . | . . . . . Targets Rammed . | . . . . . Kicked . | . . . . . Crushed . | . . . . . Highest Temperature 262 | . 110 99 224 262 Average Temperature 49 | . 53 26 100 66 Received Heat Transfer 412 | . 231 81 . 100 Siege Activations . | . . . . . Robots Corrupted . | . . . . . Combat Hostiles . | . . . . . Parts Fried . | . . . . . Impact Corruptions . | . . . . . Robots Melted . | . . . . . Combat Hostiles . | . . . . . Parts Melted 5 | . 3 2 . . Heat Transferred 1628 | . 666 740 . 222 Parts Sabotaged . | . . . . . Parts Stolen . | . . . . . Parts Stripped . | . . . . . Power Chain Reactions . | . . . . . Missiles Intercepted . | . . . . . Alert | -11 -10 -10 -10 -9 ------- Run | Scr Mat Min Exi Min Peak Influence 199 | . 52 199 . 30 Initial 19 | . . 19 . . Average 53 | . 27 164 . . Maximum Alert Level . | . . . . . Low Security (%) 100 | . 100 100 . 100 Level 1 . | . . . . . Level 2 . | . . . . . Level 3 . | . . . . . Level 4 . | . . . . . Level 5 . | . . . . . High Security . | . . . . . Max Security . | . . . . . Squads Dispatched 1 | . 1 . . . Investigation . | . . . . . Extermination . | . . . . . Reinforcement 1 | . 1 . . . Assault . | . . . . . Garrison . | . . . . . Intercept . | . . . . . Construction Impeded . | . . . . . Haulers Reinforced . | . . . . . Stealth | -11 -10 -10 -10 -9 --------- Run | Scr Mat Min Exi Min Distress Signals . | . . . . . Communications Jammed . | . . . . . Distress Signals . | . . . . . Times Spotted 25 | . 9 8 . 8 Peak Tracking Total 4 | . 4 3 2 3 Tactical Retreats 3 | . . 1 . 2 Traps | -11 -10 -10 -10 -9 ------- Run | Scr Mat Min Exi Min Traps Triggered 2 | . 2 . . . Indirectly . | . . . . . Trap Hack Attempts . | . . . . . Triggered . | . . . . . Disarmed . | . . . . . Reprogrammed . | . . . . . Reused . | . . . . . Traps Extracted . | . . . . . Installed . | . . . . . Triggered . | . . . . . Machines | -11 -10 -10 -10 -9 ---------- Run | Scr Mat Min Exi Min Machines Disabled . | . . . . . Max in Single Turn . | . . . . . Machines Sabotaged . | . . . . . Garrisons Compromised . | . . . . . Overloaded Fab Kills . | . . . . . Fab Network Shutdowns . | . . . . . Hacking | -11 -10 -10 -10 -9 --------- Run | Scr Mat Min Exi Min Machines Accessed 5 | . 1 . 3 1 Terminals 1 | . 1 . . . Fabricators . | . . . . . Repair Stations . | . . . . . Recycling Units . | . . . . . Scanalyzers . | . . . . . Garrison Access . | . . . . . Total Hacks 7 | . 3 . 3 1 Successful 5 | . 1 . 3 1 Failed 2 | . 2 . . . Catastrophic . | . . . . . Database Lockouts . | . . . . . Manual 2 | . 1 . 1 . Terminals 3 | . 3 . . . Fabricators . | . . . . . Repair Stations . | . . . . . Recycling Units . | . . . . . Scanalyzers . | . . . . . Garrison Access . | . . . . . Terminal Hacks 5 | . 1 . 3 1 Record 2 | . . . 2 . Open Door 1 | . . . . 1 Branch Access Points 1 | . 1 . . . EX-Prototype ID Bank 1 | . . . 1 . Fabricator Hacks . | . . . . . Repair Station Hacks . | . . . . . Recycling Unit Hacks . | . . . . . Scanalyzer . | . . . . . Garrison Access Hacks . | . . . . . Unauthorized Hacks . | . . . . . Terminals . | . . . . . Fabricators . | . . . . . Repair Stations . | . . . . . Recycling Units . | . . . . . Scanalyzers . | . . . . . Garrison Access . | . . . . . Data Cores Recovered . | . . . . . Used . | . . . . . Hacking Detections 1 | . 1 . . . Full Trace Events . | . . . . . Feedback Events . | . . . . . Feedback Blocked . | . . . . . Robot Schematics Acquired . | . . . . . Robots Built . | . . . . . Matter . | . . . . . Time . | . . . . . Total Robot Build Rating . | . . . . . Part Schematics Acquired . | . . . . . Parts Built . | . . . . . Matter . | . . . . . Time . | . . . . . Total Part Build Rating . | . . . . . Parts Repaired . | . . . . . Time . | . . . . . Parts Recycled . | . . . . . Recycled Matter . | . . . . . Retrieved Matter . | . . . . . Retrieved Components . | . . . . . Parts Scanalyzed . | . . . . . Part Schematics Acquired . | . . . . . Parts Damaged . | . . . . . Bothacking | -11 -10 -10 -10 -9 ------------ Run | Scr Mat Min Exi Min Used RIF Installer . | . . . . . Robots Hacked . | . . . . . Non-combat . | . . . . . Combat . | . . . . . Robot Hacks Applied . | . . . . . Relay Couplers Released . | . . . . . Robots Rewired . | . . . . . Allies Hacked . | . . . . . Hacks Repelled . | . . . . . Allies | -11 -10 -10 -10 -9 -------- Run | Scr Mat Min Exi Min Total Allies . | . . . . . Largest Group . | . . . . . Highest-Rated Group . | . . . . . Highest-Rated Ally . | . . . . . Total Orders . | . . . . . Ally Attacks . | . . . . . Total Damage . | . . . . . Kills . | . . . . . Allies Corrupted . | . . . . . Allies Melted . | . . . . . Intel | -11 -10 -10 -10 -9 ------- Run | Scr Mat Min Exi Min Robot Analysis Total . | . . . . . Derelict Logs Recovered 2 | . . 1 . 1 Drone Launches . | . . . . . Drone Recoveries . | . . . . . Exploration | -11 -10 -10 -10 -9 ------------- Run | Scr Mat Min Exi Min Turns Passed 2000 | . 291 324 849 536 Spaces Moved 1031 | 1 149 162 518 201 Core . | . . . . . Treads 988 | . 107 162 518 201 Legs 43 | 1 42 . . . Wheels . | . . . . . Hover . | . . . . . Flight . | . . . . . Fastest Speed 120 | 120 120 160 160 160 Average Speed 161 | 120 148 160 160 177 Slowest Speed 180 | 120 160 160 180 180 Overloaded Moves . | . . . . . Propulsion Burnouts . | . . . . . Robots Hopped . | . . . . . Cave-ins Triggered . | . . . . . Exploration Rate (%) 32 | 2 21 37 71 32 Regions Visited 4 Branch Regions 3 Pre-discovered Areas 2 | . . . 1 1 Known Exits Taken 1 | . 1 . . . Unknown Exits Taken 3 | 1 . 1 1 . Scrap Searched 4 | . . 1 . 3 Spaces Dug . | . . . . . Terrain Destroyed . | . . . . . Melee . | . . . . . Projectile . | . . . . . AOE . | . . . . . Terrain Rammed . | . . . . . Walls Destroyed . | . . . . . Machines Disabled . | . . . . . Actions | -11 -10 -10 -10 -9 --------- Run | Scr Mat Min Exi Min Total 1223 | . 184 187 535 317 Wait 77 | . 7 . . 70 Move 1027 | . 148 161 517 201 Hop . | . . . . . Pick Up 19 | . 3 2 8 6 Fast Attach 3 | . 3 . . . Attach 11 | . 4 2 1 4 Detach . | . . . . . Swap 6 | . . 1 2 3 Drop 11 | . 5 . 4 2 Fire 69 | . 14 21 3 31 Melee . | . . . . . Ram . | . . . . . Kick . | . . . . . Crush . | . . . . . Escape Stasis . | . . . . . Rewire . | . . . . . Trap . | . . . . . Miscellaneous . | . . . . . Route ------- -11/Scrapyard -10/Materials (discovered 2 exits: [*Mat] / *Min) -10/Mines (discovered 2 exits: [*Mat] / *Exi) -10/Exiles -9/Mines (discovered 1 exit: [*Mat]) History --------- Turn | Location | Event 1 | -11/Scrapyard | Discovered new exit (range 0) 1 | -11/Scrapyard | Entered Materials 16 | -10/Materials | Discovered new exit (range 16) 119 | -10/Materials | Discovered new exit (range 13) 142 | -10/Materials | Lost 3 parts (1p2w) 182 | -10/Materials | Identified exit to Mines 292 | -10/Materials | Entered Mines 304 | -10/Mines | Met a Derelict bent on vengeance 314 | -10/Mines | Build established: Mutant 458 | -10/Mines | Learned Materials non-interactive machine intel 506 | -10/Mines | Discovered new exit (range 4) 608 | -10/Mines | Deemed a non-threat by the Exiles lab entrance 608 | -10/Mines | Discovered new exit (range 5) 616 | -10/Mines | Entered Exiles 660 | -10/Exiles | Met 8R-AWN 686 | -10/Exiles | Met EX-HEX 735 | -10/Exiles | Met EX-BIN 762 | -10/Exiles | Met EX-DEC 1144 | -10/Exiles | Learned location of Zion (-6) 1192 | -10/Exiles | Aligned with FarCom system 1193 | -10/Exiles | Given EX-Vault access code 1230 | -10/Exiles | Opened EX-Vault 1243 | -10/Exiles | Found Latent Energy Streamer 1278 | -10/Exiles | Warned to stay clear of 0b10 Research branches 1296 | -10/Exiles | Exiles lab attacked by MAIN.C 1404 | -10/Exiles | Discovered new exit (range 14) 1419 | -10/Exiles | Attacked by the Exiles 1465 | -10/Exiles | Entered Mines 1473 | -9/Mines | Assembled infested the area 1660 | -9/Mines | Core integrity fell below 50% 1768 | -9/Mines | Met a Derelict who couldn't figure out how to use a Trap Extractor 1945 | -9/Mines | Discovered new exit (range 15) 1990 | -9/Mines | Core integrity fell below 20% 2001 | -9/Mines | Destroyed by D-53 Grenadier with Mini Grenade Launcher Last Messages --------------- 01989_ The unstable cave ceiling collapses. 01989_ Slug penetrates D-53 Grenadier. 01989_ U-05 Engineer builds a Wall. 01990_ The unstable cave ceiling collapses. 01991_ K-01 Serf collects debris. 01991_ Slug penetrates D-53 Grenadier. 01992_ Lgt. Treads destroyed. 01993_ The unstable cave ceiling collapses. 01993_ Slug penetrates D-53 Grenadier. 01994_ K-01 Serf collects debris. 01995_ The unstable cave ceiling collapses. 01995_ D-53 Grenadier destroyed. 01995_ U-05 Engineer lays Concrete. 01997_ The unstable cave ceiling collapses. 01997_ Gauss Rifle destroyed. 01997_ U-05 Engineer lays Concrete. 01999_ The unstable cave ceiling collapses. 01999_ K-01 Serf collects debris. 01999_ U-05 Engineer lays Concrete. 02001_ The unstable cave ceiling collapses. Map ----- +----------------------------------------------------+ | """ ## ##????????????????????????????????? | | """ ###??????????????????????????????? | | %""" ##?????????####????????????????? | | #%% ##???????## #????????????????? | | ## ## ####?#### #????????????????? | | ?####### ####### #" ###|%% #????????????????? | | ???????# #?????## #"!* #X #????????????????? | | ???????# ######?#####" ########?????????? | | ???????#! #?????#" ! #?????????? | | ???????# ] #?????#"! =# #?????????? | | ???????##### #?????#" ### ##### #???#?????? | | ???????????# #?????###### #???# #?? #?????? | | ???????????# #????## ### ! ###### #?# #?????? | | ???????????# #????# ## *| #### ##% ##????? | | ???????????# #???## ## k ##?# =%!= ##???? | | ???????????# #??## #### !%=*[ ##??? | | ???????????# #### *%| #??? | | ???????????# = #?? | | ???????????# #### ## #?? | | ???????????######## ##??## ##?#### #? | | ??????????????????#### ## ##????# #??????# % # | | ?????????????????????# ## ##?????# #???????#* | | ????????????????????## ##?????# #???????? | | ????????????# ####### ##????# #????????? | | ???????????# ## =d # ######!#?????????? | | ????????? % % u @ ]% #???????????< | | ????????? #######????????????? | | ?????????# ## #??????????????????? | | ??????????????????## #??????????????????? | | ???????????????????## #??????????????????? | | ????????????????????# ##??????????????????? | | ????????????????????# #???????????????????? | | ????????????????????##### ###???????????????????? | | | | | | | | | | | | | | | | | | | | | | | | | | | | | | | | | | | +----------------------------------------------------+ Best States ------------- Heat Dissipation 39 Energy Generation 12 Energy Capacity 265 Matter Stores 300 Matter Capacity 300 Sight Range 16 Terrain Scan Density 10 Evasion (%) 40 Recoil Reduction 2 Item Schematics ----------------- None Robot Schematics ------------------ None Fabricated ------------ Nothing Alien Tech Used ----------------- None Achievements -------------- None Challenges ------------ None Game ------ Seed PowerDecoderBlade Manual? 0 Play Time 00:14:00 Cumulative 191.3 hours Start 2020.12.28 @ 17:42:31 End 2020.12.28 @ 18:44:35 Sessions 1 Manual Loads 0 Difficulty Rogue Special Mode None Game No. 184 Rogue 177 Adventurer 0 Explorer 7 Win Type - Total 4 Types 0/0/4/0/0/0/0/0/0 Lore% 65 Gallery% 89 Achievement% 66 Wizard Run 0 Options --------- ASCII 0 Keyboard 0 Movement Numpad Keybinds 0 Fullscreen 1 Font 18/X11 Map View 76x50 Tactical HUD 1 Map Filters NONE Filters NONE Steam 1 RUN: 1d235bc5-af8c-448c-a06a-43316eb2a2b7